Cogmind - Beta 13 @@@ ROGUE MODE // 2024.06.19 @ 18:25:45 Player: doughoff Result: Destroyed by S-10 Pest with Light Assault Rifle Performance ------------- Evolutions (0) 0 Regions Visited (2) 400 Robots Destroyed (19) 95 Value Destroyed (614) 614 Prototype IDs (0) 0 Alien Tech Used (0) 0 Bonus (0) 0 TOTAL SCORE: 1109 Bonus ------- None Cogmind --------- Core Integrity 0/250 Matter 228/300 Energy 100/100 System Corruption 2% Temperature Hot (234) Movement Treading (240) Ox1 Location -10/Mines Parts ------- > --- POWER (1) -------- (None) > --- PROPULSION (2) --- Light Treads > --- UTILITY (2) ------ Large Storage Unit > --- WEAPON (2) ------- Light Assault Rifle Light Assault Rifle > --- INVENTORY (15) --- Light Treads Light Treads Improved Heat Sink High-capacity Storage Unit Signal Interpreter Light Armor Plating Light Armor Plating Light Armor Plating Medium Laser Beam Cannon Light Assault Rifle Grenade Launcher Grenade Launcher Mining Claw Peak State ------------ > --- POWER ------------ Ion Engine > --- PROPULSION ------- Light Treads Light Treads > --- UTILITY ---------- Large Storage Unit Targeting Computer > --- WEAPON ----------- Medium Laser Light Assault Rifle > --- INVENTORY -------- Ion Engine Light Treads Improved Heat Sink Small Storage Unit Signal Interpreter EM Pulse Gun Medium Laser Medium Laser [Rating: 8] Favorites ----------- Power Ion Engine Engine Ion Engine Propulsion Light Treads Treads Light Treads Utility Large Storage Unit Storage Large Storage Unit Processor Targeting Computer Protection Light Armor Plating Weapon Light Assault Rifle Energy Gun Medium Laser Energy Cannon Beam Cannon Ballistic Gun Light Assault Rifle Launcher Grenade Launcher Slashing Weapon Mining Claw Build | -11 -10 -10 ------- Run | Yrd Mat Min Slots Evolved . | . . . Power . | . . . Propulsion . | . . . Utility . | . . . Weapon . | . . . Parts Attached 23 | 6 12 5 Power 2 | 1 1 . Engine 2 | 1 1 . Core . | . . . Reactor . | . . . Propulsion 4 | 2 2 . Treads 4 | 2 2 . Leg . | . . . Wheel . | . . . Hover . | . . . Flight . | . . . Utility 6 | 1 3 2 Device . | . . . Storage 4 | 1 1 2 Processor 1 | . 1 . Hackware . | . . . Protection 1 | . 1 . Artifact . | . . . Weapon 11 | 2 6 3 Energy Gun 2 | 1 1 . Energy Cannon 2 | . 1 1 Ballistic Gun 5 | 1 2 2 Ballistic Cannon . | . . . Launcher 1 | . 1 . Special Weapon . | . . . Impact Weapon . | . . . Slashing Weapon 1 | . 1 . Piercing Weapon . | . . . Special Melee Weapon . | . . . Unidentified Prototypes . | . . . Parts Lost 5 | . 2 3 Power 2 | . 1 1 Propulsion 2 | . 1 1 Utility 1 | . . 1 Weapon . | . . . Highest Loss Streak 3 | . 2 3 To Critical Strikes . | . . . Average Slot Usage (%) 98 | . 98 97 Engine 13 | . 13 12 Treads 27 | . 27 27 Storage 14 | . 14 14 Processor 11 | . 13 . Protection 2 | . . 13 Energy Gun 4 | . 4 . Energy Cannon 7 | . 9 1 Ballistic Gun 12 | . 14 2 Launcher 1 | . . 11 Slashing Weapon 2 | . . 11 Naked Turns . | . . . Heaviest Build 33 | 13 33 33 Greatest Support 40 | 40 40 40 Greatest Overweight (x) 4 | 4 1 . Average Overweight (x) . | . . . Largest Inventory Capacity 20 | 8 15 20 Average Capacity 14 | 7 14 15 Most Carried 15 | 2 15 14 Average Carried 10 | 1 10 13 Final Capacity 15 | 8 15 15 Final Carried 14 | 2 13 14 Class Distribution -------------------- 100% | Mutant Dominant Class ---------------- Mutant | -10/Materials Mutant | -10/Mines Resources | -11 -10 -10 ----------- Run | Yrd Mat Min Matter Collected 421 | 235 168 18 Remotely . | . . . Salvage Created 846 | . 794 52 Parts 43 | . 40 3 Haulers Intercepted 2 | . 2 . Recyclers Shooed 1 | . 1 . Parts Field Recycled . | . . . Retrieved Matter . | . . . Parts Self-Destructed . | . . . Prevented . | . . . Kills | -11 -10 -10 ------- Run | Yrd Mat Min Combat Hostiles Destroyed 16 | . 15 1 Guns 9 | . 8 1 Cannons 6 | . 6 . Classes Destroyed 4 | . 3 1 Hauler 2 | . 2 . Watcher 1 | . 1 . Grunt 15 | . 15 . Sentry 1 | . . 1 Best Kill Streak 4 | . 4 1 Combat Bots Only 3 | . 3 1 Max Kills in Single Turn 1 | . 1 1 Gunslinging . | . . . Exploded . | . . . Melee . | . . . Uniques/NPCs Destroyed . | . . . Combat | -11 -10 -10 -------- Run | Yrd Mat Min Hostile Shots Fired 112 | . 62 50 Missed 17 | . 13 4 Damage Taken 1224 | . 569 655 Core 253 | . 97 156 Absorbed by Shields . | . . . Core Remaining (%) 100 | 100 . . Volleys Fired 64 | . 50 14 Largest 2 | . 2 2 Hottest 80 | . 80 80 Shots Fired 128 | . 100 28 Gun 92 | . 72 20 Cannon 36 | . 28 8 Launcher . | . . . Special . | . . . Kinetic 70 | . 50 20 Thermal 58 | . 50 8 Explosive . | . . . Electromagnetic . | . . . Robot Hit Streak 16 | . 16 16 Robot Miss Streak 1 | . 1 1 Penetration Max . | . . . Secondary Targets 2 | . 1 1 Max Gunslinging Chain 1 | . 1 1 Shots Hit Robots 99 | . 75 24 Core Hits 39 | . 35 4 Critical Kills 2 | . 2 . Critical Parts Destroyed . | . . . Critical Strikes 3 | . 3 . Burn 1 | . 1 . Meltdown 1 | . 1 . Destroy 1 | . 1 . Melee Attacks 1 | . 1 . Impact . | . . . Slashing 1 | . 1 . Piercing . | . . . Sneak Attacks . | . . . Combat Hostiles . | . . . Follow-up Attacks . | . . . Damage Inflicted 1204 | . 940 264 Guns 674 | . 532 142 Cannons 530 | . 408 122 Explosions . | . . . Melee . | . . . Ramming . | . . . Kinetic 425 | . 283 142 Thermal 779 | . 657 122 Explosive . | . . . Electromagnetic . | . . . Impact . | . . . Slashing . | . . . Piercing . | . . . Highest Corruption 2 | . 2 2 Average Corruption 2 | . 2 2 Corruption Purged . | . . . Corruption Blocked . | . . . Effects 12 | . 10 2 Message Errors 4 | . 3 1 Matter Fused 3 | . 3 . Heat Flow Errors 3 | . 3 . Energy Discharges 1 | . 1 . Data Loss (major) 1 | . . 1 Overload Shots . | . . . Overflow Damage . | . . . Projectiles . | . . . Explosions . | . . . Melee . | . . . Knockbacks . | . . . Impact . | . . . Kinetic . | . . . Secondary . | . . . Self-Inflicted Damage . | . . . Shots . | . . . Rammed . | . . . Targets Rammed . | . . . Kicked . | . . . Crushed . | . . . Highest Temperature 329 | . 224 329 Average Temperature 98 | . 76 209 Received Heat Transfer 585 | . 351 234 Siege Activations . | . . . Robots Corrupted . | . . . Combat Hostiles . | . . . Parts Fried . | . . . Impact Corruptions . | . . . Robots Melted 1 | . 1 . Combat Hostiles 1 | . 1 . Parts Melted 5 | . 4 1 Heat Transferred 1924 | . 1665 259 Parts Sabotaged . | . . . Parts Stolen . | . . . Parts Stripped . | . . . Power Chain Reactions . | . . . Alert | -11 -10 -10 ------- Run | Yrd Mat Min Peak Influence 227 | . 227 42 Initial 35 | . . 35 Average 69 | . 83 19 Maximum Alert Level 1 | . 1 . Low Security (%) 92 | 100 90 100 Level 1 7 | . 9 . Level 2 . | . . . Level 3 . | . . . Level 4 . | . . . Level 5 . | . . . High Security . | . . . Max Security . | . . . Squads Dispatched 5 | . 5 . Investigation 4 | . 4 . Extermination . | . . . Reinforcement 1 | . 1 . Assault . | . . . Garrison . | . . . Intercept . | . . . Searches Triggered . | . . . Construction Impeded . | . . . Haulers Reinforced . | . . . Active Scanning Responses . | . . . Cargo Convoy Interrupts . | . . . Stealth | -11 -10 -10 --------- Run | Yrd Mat Min Distress Signals . | . . . Communications Jammed . | . . . Distress Signals . | . . . Times Spotted 33 | . 25 8 Peak Tracking Total 5 | . 4 5 Tactical Retreats 2 | . 1 1 Traps | -11 -10 -10 ------- Run | Yrd Mat Min Traps Triggered 4 | . 4 . Indirectly . | . . . Trap Hack Attempts . | . . . Triggered . | . . . Disarmed . | . . . Reprogrammed . | . . . Reused . | . . . Traps Extracted . | . . . Installed . | . . . Triggered . | . . . Machines | -11 -10 -10 ---------- Run | Yrd Mat Min Machines Disabled . | . . . Max in Single Turn . | . . . Machines Repaired . | . . . Machines Dismantled . | . . . Machines Sabotaged . | . . . Overloaded Fab Kills . | . . . Hacking | -11 -10 -10 --------- Run | Yrd Mat Min Machines Accessed 7 | . 6 1 Terminals 7 | . 6 1 Fabricators . | . . . Repair Stations . | . . . Recycling Units . | . . . Scanalyzers . | . . . Garrison Access . | . . . Total Hacks 16 | . 14 2 Successful 9 | . 8 1 Failed 7 | . 6 1 Catastrophic 1 | . 1 . Database Lockouts . | . . . Manual 16 | . 14 2 Terminals 16 | . 14 2 Fabricators . | . . . Repair Stations . | . . . Recycling Units . | . . . Scanalyzers . | . . . Garrison Access . | . . . Terminal Hacks 5 | . 4 1 Part Schematic 1 | . . 1 Robot Analysis 3 | . 3 . Zone Layout 1 | . 1 . Fabricator Hacks . | . . . Repair Station Hacks . | . . . Recycling Unit Hacks . | . . . Scanalyzer . | . . . Garrison Access Hacks . | . . . Unauthorized Hacks 4 | . 4 . Terminals 4 | . 4 . Botnet 4 | . 4 . Fabricators . | . . . Repair Stations . | . . . Recycling Units . | . . . Scanalyzers . | . . . Garrison Access . | . . . Data Cores Recovered . | . . . Used . | . . . Hacking Detections 7 | . 6 1 Full Trace Events 1 | . 1 . Feedback Events . | . . . Feedback Blocked . | . . . Robot Schematics Acquired . | . . . Robots Built . | . . . Authchips . | . . . Time . | . . . Total Robot Build Rating . | . . . Part Schematics Acquired 1 | . . 1 Parts Built . | . . . Authchips . | . . . Time . | . . . Total Part Build Rating . | . . . Parts Repaired . | . . . Time . | . . . Parts Recycled . | . . . Recycled Matter . | . . . Retrieved Matter . | . . . Retrieved Components . | . . . Parts Scanalyzed . | . . . Part Schematics Acquired . | . . . Parts Damaged . | . . . Bothacking | -11 -10 -10 ------------ Run | Yrd Mat Min Used RIF Installer . | . . . Robots Hacked . | . . . Non-combat . | . . . Combat . | . . . Robot Hacks Applied . | . . . Relay Couplers Released . | . . . Fabnet Peak Effective % . | . . . Robots Rewired . | . . . Allies Hacked . | . . . Hacks Repelled . | . . . Allies | -11 -10 -10 -------- Run | Yrd Mat Min Total Allies 3 | . . 3 Largest Group 3 | . . 3 Highest-Rated Group 40 | . . 40 Highest-Rated Ally 16 | . . 16 Total Orders . | . . . Ally Attacks 13 | . . 13 Total Damage 79 | . . 79 Kills 2 | . . 2 Allies Corrupted . | . . . Allies Melted . | . . . Intel | -11 -10 -10 ------- Run | Yrd Mat Min Robot Analysis Total 3 | . 3 . Derelict Logs Recovered . | . . . Drone Launches . | . . . Drone Recoveries . | . . . Exploration | -11 -10 -10 ------------- Run | Yrd Mat Min Turns Passed 1606 | 88 1269 249 Spaces Moved 813 | 53 635 125 Core 11 | 11 . . Treads 802 | 42 635 125 Legs . | . . . Wheels . | . . . Hover . | . . . Flight . | . . . Fastest Speed 50 | 50 160 160 Average Speed 159 | 146 160 160 Slowest Speed 250 | 250 240 160 Overloaded Moves . | . . . Propulsion Burnouts . | . . . Robots Hopped . | . . . Cave-ins Triggered . | . . . Exploration Rate (%) 39 | 5 88 26 Regions Visited 2 Branch Regions 1 Pre-discovered Areas . | . . . Known Exits Taken . | . . . Unknown Exits Taken 2 | 1 1 . Scrap Searched 1 | . . 1 Spaces Dug 1 | . 1 . Terrain Destroyed 1 | . 1 . Melee 1 | . 1 . Projectile . | . . . AOE . | . . . Terrain Rammed . | . . . Walls Destroyed . | . . . Machines Disabled . | . . . Actions | -11 -10 -10 --------- Run | Yrd Mat Min Total 1003 | 60 795 148 Wait 77 | . 75 2 Move 811 | 52 634 125 Hop . | . . . Pick Up 19 | 2 16 1 Fast Attach 8 | 6 2 . Attach 2 | . 2 . Detach 1 | . 1 . Swap 13 | . 8 5 Drop 7 | . 6 1 Fire 64 | . 50 14 Melee 1 | . 1 . Ram . | . . . Kick . | . . . Crush . | . . . Escape Stasis . | . . . Rewire . | . . . Trap . | . . . Miscellaneous . | . . . Route ------- -11/Scrapyard -10/Materials (discovered 4 exits: [*Mat x3] / *Min) -10/Mines History --------- Turn | Location | Event 30 | -11/Scrapyard | Discovered new exit (range 15) 89 | -11/Scrapyard | Entered Materials 316 | -10/Materials | Build established: Mutant 579 | -10/Materials | Discovered new exit (range 6) 798 | -10/Materials | Discovered new exit (range 11) 953 | -10/Materials | Discovered new exit (range 11) 1154 | -10/Materials | Discovered new exit (range 14) 1358 | -10/Materials | Entered Mines 1411 | -10/Mines | Assisted by bots powering up and referring to "LRC-V3" 1437 | -10/Mines | Assembled infested the area 1510 | -10/Mines | Lost 3 allies 1556 | -10/Mines | Joined a pair of Derelicts in attacking an 0b10 outpost 1564 | -10/Mines | Core integrity fell below 50% 1588 | -10/Mines | Core integrity fell below 20% 1607 | -10/Mines | Destroyed by S-10 Pest with Light Assault Rifle Last Messages --------------- 01469_ Trooper 1a destroyed. 01475_ K-01 Serf collects debris. 01515_ System corrupted: Substantial component data lost. 01522_ K-01 Serf collects debris. 01556_ A derelict emerges from the shadows: "We've had our eye on this brand new outpost for a little while, just waiting for an opportunity to strike. Need some help?" 01556_ 33-MW7(g) suffers critical hit (Burn). 01558_ Machine disabled. 01560_ G9-1J2(g) suffers critical hit (Destroy). 01560_ G9-1J2(g) destroyed. 01562_ 33-MW7(g) destroyed. 01575_ Critical hit (Burn: +37). 01580_ Ion Engine destroyed. 01580_ Critical hit (Burn: +37). 01591_ Y-45 Defender heat damages Lgt. Armor Plating. 01592_ Lgt. Treads destroyed. 01594_ Beam Rifle melted. 01594_ Y-45 Defender destroyed. 01594_ Switching to secondary target: Y-45 Defender. 01599_ Lgt. Armor Plating destroyed. Map ----- +----------------------------------------------------+ | ???????# #??? ##????????????? | | ???????# #??? ##???????????? | | ???????# #???# #???????????? | | ???????# ##### #???????????? | | ???????# #????????????? | | ???????####### ##????????????? | | ?????????##### ##?????????????? | | ?????????# #??????????????? | | ?????????# ##??????????????? | | ?????????# #####???????????????? | | ?????????# #???????????????????? | | ?????????# #???????????????????? | | ?????????# #???????????????????? | | ?????????# #???????????????????? | | ?????????# #???????????????????? | | ?????????# #???????????????????? | | ?????????# #???????????????????? | | ?????????# #########???????????? | | ?????????# ????? | | ??????####a#########???????????? | | ??????# #??????????????? | | ??????# #??????????????? | | ??????# #??????????????? | | ??###?# #??????????????? | | ?##" ## #??????????????? | | ?#"" #@ #??????????????? | | ?#[! !Y[ #??????????????? | | ?#!]!%/%* #??????????????? | | ?#"" =#== #??????????????? | | ?## ## s#??????????????? | | ??###?# ????????????? | | ??????# ss ??????????? | | ??????# ### ??????????? | | ??????# #??????????????? | | ??????###########??????????????? | | ???????????????????????????????? | | ???????????????????????????????? | | ???????????????????????????????? | | ???????????????????????????????? | | ???????????????????????????????? | | ???????????????????????????????? | | ???????????????????????????????? | | ???????????????????????????????? | | ???????????????????????????????? | | ???????????????????????????????? | | ???????????????????????????????? | | ???????????????????????????????? | | ???????????????????????????????? | | ???????????????????????????????? | | ???????????????????????????????? | +----------------------------------------------------+ Best States ------------- Heat Dissipation 25 Energy Generation 10 Energy Capacity 250 Matter Stores 300 Matter Capacity 300 Sight Range 16 Terrain Scan Density 10 Armor Coverage 150 Evasion (%) 50 Targeting Accuracy 5 Recoil Reduction 2 Item Schematics ----------------- Med. Storage Unit | -10/Mines | Hacked Robot Schematics ------------------ None Fabricated ------------ Nothing Alien Tech Used ----------------- None Achievements -------------- None Challenges ------------ None Game ------ Seed TargetReinforcedInterrupter Manual? 0 Play Time 00:14:57 Cumulative 36.2 hours Start 2024.06.19 @ 18:13:22 End 2024.06.19 @ 18:25:45 Sessions 1 Manual Loads 0 Difficulty Rogue Special Mode None Game No. 43 Rogue 36 Adventurer 7 Explorer 0 Win Type - Total 1 Types 1/0/0/0/0/0/0/0/0 Lore% 13 Gallery% 30 Achievement% 32 Wizard Run 0 Options --------- Layout 0 ASCII 0 Keyboard 0 Movement Mouse Keybinds 0 Fullscreen 2 Font 24/Smallcaps Map View 113x50 Zoom Use 0% Tactical HUD 1 Map Filters NONE Filters NONE Steam 1 RUN: c56485cd-b5cb-44c4-8894-987d1c0a090d